[Event "*** MasterClass Titled Tuesday Blitz"]
[Site "Chess.com"]
[Date "2017.12.12"]
[Round "4"]
[White "Jbd735"]
[Black "toad"]
[Result "0-1"]
[WhiteElo "2245"]
[BlackElo "2197"]
[TimeControl "180+2"]
[EndTime "13:52:10 PST"]
[Termination "toad won by resignation"]

1. d4 {[%clk 0:03:01.9]} 1... Nf6 {[%clk 0:03:00.8]} 2. Nf3 {[%clk 0:03:01.2]}
2... g6 {[%clk 0:02:59.9]} 3. c3 {[%clk 0:03:01.6]} 3... Bg7 {[%clk 0:03:00.4]}
4. Nbd2 {[%clk 0:02:59.8]} 4... d5 {[%clk 0:03:01.3]} 5. e3 {[%clk 0:03:00.1]}
5... O-O {[%clk 0:03:01.4]} 6. Bd3 {[%clk 0:03:00.9]} 6... b6 {[%clk 0:03:02.1]}
7. Qe2 {[%clk 0:02:59.6]} 7... c5 {[%clk 0:03:02.4]} 8. O-O {[%clk 0:02:58.1]}
8... Bb7 {[%clk 0:03:03.1]} 9. e4 {[%clk 0:02:59]} 9... dxe4 {[%clk 0:03:01.3]}
10. Nxe4 {[%clk 0:03:00.9]} 10... Nxe4 {[%clk 0:02:48.2]} 11. Bxe4 {[%clk
0:03:02.8]} 11... Bxe4 {[%clk 0:02:49.4]} 12. Qxe4 {[%clk 0:03:03.9]} 12... Nd7
{[%clk 0:02:49.8]} 13. Bf4 {[%clk 0:03:01.9]} 13... Nf6 {[%clk 0:02:14.5]} 14.
Qb7 {[%clk 0:02:49]} 14... Qd7 {[%clk 0:02:01.2]} 15. Qxd7 {[%clk 0:02:35.6]}
15... Nxd7 {[%clk 0:02:02.5]} 16. d5 {[%clk 0:02:23.8]} 16... b5 {[%clk
0:01:38.4]} 17. Rfe1 {[%clk 0:02:12.4]} 17... Rfe8 {[%clk 0:01:39.3]} 18. Rad1
{[%clk 0:02:04.1]} 18... Nb6 {[%clk 0:01:39.1]} 19. Ne5 {[%clk 0:01:12.3]} 19...
Bxe5 {[%clk 0:01:23.6]} 20. Bxe5 {[%clk 0:01:00.3]} 20... Rad8 {[%clk
0:01:18.1]} 21. Bc7 {[%clk 0:00:30.2]} 21... Rxd5 {[%clk 0:01:18.6]} 22. Bxb6
{[%clk 0:00:30.7]} 22... Rxd1 {[%clk 0:01:19.6]} 23. Rxd1 {[%clk 0:00:32.4]}
23... axb6 {[%clk 0:01:20.9]} 24. Rd7 {[%clk 0:00:30.8]} 24... Ra8 {[%clk
0:01:14.5]} 25. g3 {[%clk 0:00:16]} 25... Rxa2 {[%clk 0:01:14.5]} 26. b4 {[%clk
0:00:16.7]} 26... Rc2 {[%clk 0:00:55.3]} 27. Rb7 {[%clk 0:00:07.8]} 27... Rxc3
{[%clk 0:00:49.6]} 28. Rxb6 {[%clk 0:00:07.3]} 28... cxb4 {[%clk 0:00:49]} 29.
Rxb5 {[%clk 0:00:08.4]} 29... b3 {[%clk 0:00:49.2]} 30. Rb7 {[%clk 0:00:07.8]}
30... e6 {[%clk 0:00:49.3]} 31. h4 {[%clk 0:00:07.2]} 31... h5 {[%clk
0:00:49.3]} 32. Kg2 {[%clk 0:00:08.1]} 32... Kg7 {[%clk 0:00:49.9]} 33. Kf1
{[%clk 0:00:08]} 33... e5 {[%clk 0:00:22.9]} 34. Rb5 {[%clk 0:00:02.9]} 34...
Kf6 {[%clk 0:00:22.6]} 35. Rb4 {[%clk 0:00:03.2]} 35... Ke6 {[%clk 0:00:21.5]}
36. Kg2 {[%clk 0:00:04]} 36... Kd5 {[%clk 0:00:21.5]} 37. Rb7 {[%clk 0:00:04.7]}
37... f5 {[%clk 0:00:21.9]} 38. Rb6 {[%clk 0:00:05.3]} 38... Kc4 {[%clk
0:00:15.4]} 39. Rb7 {[%clk 0:00:04.3]} 39... Kd3 {[%clk 0:00:13.6]} 40. Rb6
{[%clk 0:00:03.6]} 40... Kc2 {[%clk 0:00:14.5]} 41. Kf1 {[%clk 0:00:03.5]} 41...
b2 {[%clk 0:00:14.8]} 0-1

[Event "*** MasterClass Titled Tuesday Blitz"]
[Site "Chess.com"]
[Date "2017.12.12"]
[Round "4"]
[White "ST-Sandavagur"]
[Black "Yaacovn"]
[Result "0-1"]
[WhiteElo "2487"]
[BlackElo "2642"]
[TimeControl "180+2"]
[EndTime "13:52:15 PST"]
[Termination "Yaacovn won by resignation"]

1. e4 {[%clk 0:03:01.8]} 1... c6 {[%clk 0:03:01.1]} 2. d4 {[%clk 0:03:00.8]}
2... d5 {[%clk 0:03:02.5]} 3. f3 {[%clk 0:03:02.4]} 3... dxe4 {[%clk 0:03:03.4]}
4. fxe4 {[%clk 0:03:04.3]} 4... e5 {[%clk 0:03:05.2]} 5. Nf3 {[%clk 0:03:05.9]}
5... Be6 {[%clk 0:03:06.5]} 6. c3 {[%clk 0:03:04.2]} 6... Nf6 {[%clk 0:03:07.4]}
7. Bd3 {[%clk 0:03:06.1]} 7... Nbd7 {[%clk 0:03:08.8]} 8. O-O {[%clk 0:03:08]}
8... Qc7 {[%clk 0:03:10.3]} 9. Bg5 {[%clk 0:03:06.4]} 9... Be7 {[%clk
0:03:10.6]} 10. Kh1 {[%clk 0:03:08.3]} 10... h6 {[%clk 0:03:10.9]} 11. Bh4
{[%clk 0:03:10.2]} 11... O-O-O {[%clk 0:03:08.8]} 12. Qa4 {[%clk 0:03:08.2]}
12... Nc5 {[%clk 0:02:59.5]} 13. dxc5 {[%clk 0:02:42.4]} 13... Rxd3 {[%clk
0:02:59.6]} 14. Bg3 {[%clk 0:02:44.2]} 14... Nd7 {[%clk 0:02:53.1]} 15. Qxa7
{[%clk 0:02:44.6]} 15... f6 {[%clk 0:02:25.8]} 16. b4 {[%clk 0:02:39.3]} 16...
b6 {[%clk 0:01:49.7]} 17. Qxc7+ {[%clk 0:02:37.4]} 17... Kxc7 {[%clk 0:01:50.9]}
18. Nd4 {[%clk 0:01:33.5]} 18... Bc4 {[%clk 0:01:46.5]} 19. Na3 {[%clk
0:01:28.2]} 19... Rxc3 {[%clk 0:01:34.5]} 20. Nxc4 {[%clk 0:01:25.6]} 20... Rxc4
{[%clk 0:01:35.6]} 21. Ne6+ {[%clk 0:01:12.2]} 21... Kc8 {[%clk 0:01:27]} 22.
Nxg7 {[%clk 0:00:41.8]} 22... Rxb4 {[%clk 0:01:27.3]} 23. cxb6 {[%clk
0:00:41.1]} 23... Nxb6 {[%clk 0:01:05.5]} 24. Nf5 {[%clk 0:00:42.2]} 24... Bf8
{[%clk 0:01:00.1]} 25. Rac1 {[%clk 0:00:41.4]} 25... c5 {[%clk 0:00:41.1]} 26.
Ne3 {[%clk 0:00:31.5]} 26... Rxe4 {[%clk 0:00:38.4]} 27. Nd1 {[%clk 0:00:27]}
27... Be7 {[%clk 0:00:36]} 28. Nc3 {[%clk 0:00:25.4]} 28... Rc4 {[%clk
0:00:35.3]} 29. Bf2 {[%clk 0:00:26.8]} 29... Kb7 {[%clk 0:00:33.1]} 30. Nb5
{[%clk 0:00:13.1]} 30... Ra8 {[%clk 0:00:19.8]} 31. Rb1 {[%clk 0:00:10.1]} 31...
Rb4 {[%clk 0:00:19.2]} 32. Rxb4 {[%clk 0:00:06.6]} 32... cxb4 {[%clk 0:00:21.1]}
33. Rc1 {[%clk 0:00:07.8]} 33... Nd5 {[%clk 0:00:19.2]} 34. h3 {[%clk
0:00:03.7]} 34... Rxa2 {[%clk 0:00:19.8]} 35. Bc5 {[%clk 0:00:05.3]} 35... Bxc5
{[%clk 0:00:19.7]} 36. Rxc5 {[%clk 0:00:07.2]} 36... Rd2 {[%clk 0:00:19.5]} 37.
Nd6+ {[%clk 0:00:08.1]} 37... Kb6 {[%clk 0:00:20.9]} 38. Rc1 {[%clk 0:00:06.9]}
38... Ne3 {[%clk 0:00:18.8]} 39. Re1 {[%clk 0:00:07.4]} 39... Rxd6 {[%clk
0:00:19.3]} 40. Rxe3 {[%clk 0:00:08.1]} 40... Kb5 {[%clk 0:00:20.7]} 0-1

[Event "*** MasterClass Titled Tuesday Blitz"]
[Site "Chess.com"]
[Date "2017.12.12"]
[Round "4"]
[White "MITerryble"]
[Black "1stSecond"]
[Result "1-0"]
[WhiteElo "2656"]
[BlackElo "2480"]
[TimeControl "180+2"]
[EndTime "13:52:26 PST"]
[Termination "MITerryble won by resignation"]

1. d4 {[%clk 0:03:00.9]} 1... Nf6 {[%clk 0:03:01]} 2. Nf3 {[%clk 0:03:02]} 2...
e6 {[%clk 0:03:02.3]} 3. c4 {[%clk 0:03:02.8]} 3... b6 {[%clk 0:03:03.5]} 4. g3
{[%clk 0:03:04]} 4... Bb7 {[%clk 0:03:03.5]} 5. Bg2 {[%clk 0:03:04.5]} 5... Bb4+
{[%clk 0:03:05]} 6. Nbd2 {[%clk 0:03:01.3]} 6... O-O {[%clk 0:03:05.4]} 7. O-O
{[%clk 0:03:02.2]} 7... d5 {[%clk 0:03:06.6]} 8. Qc2 {[%clk 0:02:58.3]} 8... Re8
{[%clk 0:03:05]} 9. a3 {[%clk 0:02:58.5]} 9... Bd6 {[%clk 0:02:59.3]} 10. Ne5
{[%clk 0:02:53.8]} 10... c5 {[%clk 0:02:34.9]} 11. e3 {[%clk 0:02:54.9]} 11...
cxd4 {[%clk 0:02:34.2]} 12. exd4 {[%clk 0:02:55.9]} 12... Nc6 {[%clk 0:02:35.1]}
13. Nxc6 {[%clk 0:02:56.2]} 13... Bxc6 {[%clk 0:02:37]} 14. b4 {[%clk
0:02:55.7]} 14... Rc8 {[%clk 0:02:34.3]} 15. c5 {[%clk 0:02:55.8]} 15... bxc5
{[%clk 0:02:26.9]} 16. dxc5 {[%clk 0:02:47]} 16... Bf8 {[%clk 0:02:27.5]} 17.
Bb2 {[%clk 0:02:45.9]} 17... e5 {[%clk 0:02:28.4]} 18. Rfe1 {[%clk 0:02:44.6]}
18... Qc7 {[%clk 0:02:22.8]} 19. Qf5 {[%clk 0:02:18.4]} 19... d4 {[%clk
0:02:17.1]} 20. Bxc6 {[%clk 0:02:16.1]} 20... Qxc6 {[%clk 0:02:19]} 21. Rxe5
{[%clk 0:02:02.3]} 21... g6 {[%clk 0:01:23.5]} 22. Qf4 {[%clk 0:02:02.7]} 22...
Nh5 {[%clk 0:01:15]} 23. Rxh5 {[%clk 0:01:38]} 23... gxh5 {[%clk 0:01:15.4]} 24.
Qxd4 {[%clk 0:01:37.3]} 24... f6 {[%clk 0:01:15.4]} 25. Qxf6 {[%clk 0:01:36.1]}
25... Qxf6 {[%clk 0:01:09.2]} 26. Bxf6 {[%clk 0:01:37.9]} 26... Kf7 {[%clk
0:01:09.8]} 27. Bg5 {[%clk 0:01:29.6]} 27... Re2 {[%clk 0:00:59.7]} 28. Kf1
{[%clk 0:01:27.9]} 28... Rce8 {[%clk 0:01:00]} 29. Rd1 {[%clk 0:01:24.2]} 29...
Bg7 {[%clk 0:00:59.4]} 30. Be3 {[%clk 0:01:23]} 30... R8xe3 {[%clk 0:00:51.3]}
31. fxe3 {[%clk 0:01:23.6]} 31... Rxh2 {[%clk 0:00:46.6]} 32. c6 {[%clk
0:01:10.1]} 32... Be5 {[%clk 0:00:43.1]} 33. Nc4 {[%clk 0:01:10.4]} 33... Bxg3
{[%clk 0:00:37]} 34. c7 {[%clk 0:01:09.1]} 34... Rh1+ {[%clk 0:00:20.9]} 35. Kg2
{[%clk 0:01:06.3]} 35... Rxd1 {[%clk 0:00:22]} 36. c8=Q {[%clk 0:01:07.3]} 36...
h4 {[%clk 0:00:20.9]} 37. Qf5+ {[%clk 0:01:05.7]} 37... Ke7 {[%clk 0:00:18.1]}
38. Qe4+ {[%clk 0:01:06]} 38... Kf8 {[%clk 0:00:18.7]} 39. Qf5+ {[%clk
0:01:06.3]} 39... Ke7 {[%clk 0:00:19.9]} 40. Qxh7+ {[%clk 0:01:07.1]} 40... Ke6
{[%clk 0:00:19.6]} 41. Qg6+ {[%clk 0:01:07.6]} 41... Ke7 {[%clk 0:00:20.7]} 42.
e4 {[%clk 0:01:04.3]} 42... Re1 {[%clk 0:00:17.4]} 43. Ne3 {[%clk 0:01:02.3]}
43... Re2+ {[%clk 0:00:15.9]} 44. Kh3 {[%clk 0:01:03]} 44... Rh2+ {[%clk
0:00:04.4]} 45. Kg4 {[%clk 0:01:03.5]} 45... Bf2 {[%clk 0:00:02.2]} 46. Nd5+
{[%clk 0:01:03.7]} 46... Kd7 {[%clk 0:00:03.5]} 47. Qf7+ {[%clk 0:01:04.6]}
47... Kc6 {[%clk 0:00:05.4]} 48. Qc7+ {[%clk 0:01:04.2]} 48... Kb5 {[%clk
0:00:06.2]} 49. Qxh2 {[%clk 0:01:04.9]} 49... Bg3 {[%clk 0:00:07.5]} 50. Qe2+
{[%clk 0:01:05.6]} 50... Ka4 {[%clk 0:00:08.4]} 51. Qc4 {[%clk 0:01:06.4]} 51...
h3 {[%clk 0:00:08.8]} 52. b5+ {[%clk 0:01:06.3]} 52... Ka5 {[%clk 0:00:09.6]}
1-0

[Event "*** MasterClass Titled Tuesday Blitz"]
[Site "Chess.com"]
[Date "2017.12.12"]
[Round "4"]
[White "Aygehovit1992"]
[Black "JSMastropiero"]
[Result "0-1"]
[WhiteElo "2434"]
[BlackElo "2319"]
[TimeControl "180+2"]
[EndTime "13:52:42 PST"]
[Termination "JSMastropiero won by checkmate"]

1. c3 {[%clk 0:03:01.9]} 1... d5 {[%clk 0:02:58.5]} 2. Nf3 {[%clk 0:02:59.9]}
2... Nf6 {[%clk 0:02:57.7]} 3. d4 {[%clk 0:02:59.8]} 3... e6 {[%clk 0:02:57]} 4.
Bf4 {[%clk 0:02:59.1]} 4... Bd6 {[%clk 0:02:55.5]} 5. e3 {[%clk 0:02:59.1]} 5...
c5 {[%clk 0:02:52.2]} 6. Nbd2 {[%clk 0:02:58.9]} 6... Nc6 {[%clk 0:02:50.3]} 7.
Bb5 {[%clk 0:02:59.8]} 7... Bxf4 {[%clk 0:02:39.9]} 8. exf4 {[%clk 0:02:54.2]}
8... Bd7 {[%clk 0:02:37.8]} 9. Bxc6 {[%clk 0:02:51.2]} 9... Bxc6 {[%clk
0:02:35.6]} 10. O-O {[%clk 0:02:51.7]} 10... Qd6 {[%clk 0:02:34.2]} 11. Ne5
{[%clk 0:02:44.8]} 11... O-O {[%clk 0:02:34.4]} 12. dxc5 {[%clk 0:02:42.6]}
12... Qxc5 {[%clk 0:02:31.8]} 13. Nb3 {[%clk 0:02:43.8]} 13... Qd6 {[%clk
0:02:27.7]} 14. Nd4 {[%clk 0:02:44.1]} 14... Nd7 {[%clk 0:02:16.5]} 15. Nxd7
{[%clk 0:02:37.9]} 15... Bxd7 {[%clk 0:02:13]} 16. Qd2 {[%clk 0:02:38.7]} 16...
Rfc8 {[%clk 0:02:07.8]} 17. Rfe1 {[%clk 0:02:39.5]} 17... b5 {[%clk 0:02:07.3]}
18. a3 {[%clk 0:02:40.1]} 18... a5 {[%clk 0:02:07.4]} 19. h4 {[%clk 0:02:41.3]}
19... Rc4 {[%clk 0:02:02.6]} 20. h5 {[%clk 0:02:40]} 20... h6 {[%clk 0:02:03.2]}
21. Re3 {[%clk 0:02:39]} 21... Qxf4 {[%clk 0:01:57.8]} 22. Rae1 {[%clk 0:02:35]}
22... b4 {[%clk 0:01:55.6]} 23. axb4 {[%clk 0:02:32.7]} 23... axb4 {[%clk
0:01:56.5]} 24. Nf3 {[%clk 0:02:30.3]} 24... bxc3 {[%clk 0:01:54.7]} 25. bxc3
{[%clk 0:02:32.2]} 25... Rac8 {[%clk 0:01:54]} 26. Ne5 {[%clk 0:02:30.8]} 26...
R4c7 {[%clk 0:01:32.5]} 27. Qb2 {[%clk 0:02:20.3]} 27... Be8 {[%clk 0:01:28.8]}
28. Rg3 {[%clk 0:01:53.3]} 28... f6 {[%clk 0:01:20.6]} 29. Nd3 {[%clk
0:01:43.6]} 29... Qd6 {[%clk 0:01:19]} 30. Qd2 {[%clk 0:01:39.5]} 30... Kh8
{[%clk 0:01:15.3]} 31. Nf4 {[%clk 0:01:39.5]} 31... Bf7 {[%clk 0:01:05.9]} 32.
Ree3 {[%clk 0:01:27.3]} 32... Qxf4 {[%clk 0:00:58.5]} 33. Rgf3 {[%clk
0:01:28.4]} 33... Qd6 {[%clk 0:00:53.5]} 34. Rd3 {[%clk 0:01:29.5]} 34... e5
{[%clk 0:00:51.1]} 35. Rg3 {[%clk 0:01:30.8]} 35... e4 {[%clk 0:00:49.3]} 36.
Rd4 {[%clk 0:01:29.8]} 36... Qe5 {[%clk 0:00:46.6]} 37. f4 {[%clk 0:01:25.2]}
37... exf3 {[%clk 0:00:45.2]} 38. Rxf3 {[%clk 0:01:26.4]} 38... Bxh5 {[%clk
0:00:43.5]} 39. Rxd5 {[%clk 0:01:26]} 39... Bxf3 {[%clk 0:00:28]} 40. Rxe5
{[%clk 0:01:26.8]} 40... fxe5 {[%clk 0:00:29.6]} 41. gxf3 {[%clk 0:01:28.2]}
41... Rxc3 {[%clk 0:00:31.1]} 42. Qd6 {[%clk 0:01:28.4]} 42... Rxf3 {[%clk
0:00:30.5]} 43. Qxe5 {[%clk 0:01:29.5]} 43... Rcf8 {[%clk 0:00:31.8]} 44. Qe7
{[%clk 0:01:28.5]} 44... Rg3+ {[%clk 0:00:28.3]} 45. Kh2 {[%clk 0:01:29.2]}
45... Rg5 {[%clk 0:00:29.9]} 46. Qe4 {[%clk 0:01:23.7]} 46... Rf6 {[%clk
0:00:25]} 47. Qe8+ {[%clk 0:01:16]} 47... Kh7 {[%clk 0:00:26]} 48. Qe4+ {[%clk
0:01:16.7]} 48... Rfg6 {[%clk 0:00:25.5]} 49. Qf3 {[%clk 0:01:17.1]} 49... h5
{[%clk 0:00:24.3]} 50. Qe4 {[%clk 0:01:12.7]} 50... Kh6 {[%clk 0:00:24.6]} 51.
Qe8 {[%clk 0:01:12.4]} 51... Kh7 {[%clk 0:00:19.2]} 52. Qe4 {[%clk 0:01:12.4]}
52... Rg4 {[%clk 0:00:19.8]} 53. Qe1 {[%clk 0:01:12.8]} 53... h4 {[%clk
0:00:20]} 54. Qe5 {[%clk 0:01:12.3]} 54... Kh6 {[%clk 0:00:19]} 55. Qe8 {[%clk
0:01:13.1]} 55... Rg2+ {[%clk 0:00:16.9]} 56. Kh3 {[%clk 0:01:13.8]} 56... R2g3+
{[%clk 0:00:18.1]} 57. Kh2 {[%clk 0:01:13.4]} 57... Rg2+ {[%clk 0:00:12.9]} 58.
Kh3 {[%clk 0:01:13.4]} 58... R6g3+ {[%clk 0:00:12.3]} 59. Kxh4 {[%clk 0:01:11]}
59... g5# {[%clk 0:00:13]} 0-1

[Event "*** MasterClass Titled Tuesday Blitz"]
[Site "Chess.com"]
[Date "2017.12.12"]
[Round "4"]
[White "pedromartinez91"]
[Black "GM-2023"]
[Result "1-0"]
[WhiteElo "2197"]
[BlackElo "2043"]
[TimeControl "180+2"]
[EndTime "13:52:48 PST"]
[Termination "pedromartinez91 won on time"]

1. e4 {[%clk 0:03:01.9]} 1... e5 {[%clk 0:03:01]} 2. Nf3 {[%clk 0:03:02.4]} 2...
Nc6 {[%clk 0:03:02.3]} 3. Bb5 {[%clk 0:03:03.7]} 3... a6 {[%clk 0:03:03.3]} 4.
Ba4 {[%clk 0:03:04.6]} 4... Nf6 {[%clk 0:03:04]} 5. Bxc6 {[%clk 0:03:02.7]} 5...
dxc6 {[%clk 0:03:04.6]} 6. d3 {[%clk 0:03:04.6]} 6... Bd6 {[%clk 0:03:03.3]} 7.
Nbd2 {[%clk 0:02:58.7]} 7... Bg4 {[%clk 0:03:01.7]} 8. h3 {[%clk 0:02:59]} 8...
Bh5 {[%clk 0:03:01.6]} 9. g4 {[%clk 0:02:59.6]} 9... Bg6 {[%clk 0:03:02.5]} 10.
Nc4 {[%clk 0:02:59.8]} 10... Qe7 {[%clk 0:03:03.4]} 11. Bg5 {[%clk 0:02:52]}
11... h5 {[%clk 0:02:56.4]} 12. Nh4 {[%clk 0:02:38.5]} 12... hxg4 {[%clk
0:02:48.6]} 13. hxg4 {[%clk 0:02:33.8]} 13... Qe6 {[%clk 0:02:34.1]} 14. f3
{[%clk 0:02:13.3]} 14... Be7 {[%clk 0:02:34.3]} 15. Qd2 {[%clk 0:01:23]} 15...
O-O-O {[%clk 0:01:59.9]} 16. O-O-O {[%clk 0:01:20.6]} 16... Bh7 {[%clk
0:01:55.4]} 17. Qe3 {[%clk 0:01:11.7]} 17... Kb8 {[%clk 0:01:54]} 18. Nf5 {[%clk
0:01:11.6]} 18... Bxf5 {[%clk 0:01:52.3]} 19. exf5 {[%clk 0:01:04.3]} 19... Qd5
{[%clk 0:01:24]} 20. Rxh8 {[%clk 0:00:57.9]} 20... Rxh8 {[%clk 0:01:21]} 21.
Qxe5 {[%clk 0:00:58.4]} 21... Qd7 {[%clk 0:01:11.8]} 22. Qg3 {[%clk 0:00:46.1]}
22... Nd5 {[%clk 0:01:02.2]} 23. Bd2 {[%clk 0:00:38.1]} 23... Bf6 {[%clk
0:00:40.8]} 24. c3 {[%clk 0:00:36.7]} 24... Re8 {[%clk 0:00:29.5]} 25. Re1
{[%clk 0:00:32.1]} 25... Rd8 {[%clk 0:00:19.2]} 26. d4 {[%clk 0:00:32.4]} 26...
b5 {[%clk 0:00:18.8]} 27. Ne5 {[%clk 0:00:32]} 27... Qd6 {[%clk 0:00:20.1]} 28.
g5 {[%clk 0:00:30.3]} 28... Be7 {[%clk 0:00:19.6]} 29. Bf4 {[%clk 0:00:25]}
29... Nxf4 {[%clk 0:00:15.4]} 30. Qxf4 {[%clk 0:00:25.4]} 30... b4 {[%clk
0:00:15.7]} 31. Nd3 {[%clk 0:00:24.5]} 31... Qd5 {[%clk 0:00:14.7]} 32. Rxe7
{[%clk 0:00:21.6]} 32... Rc8 {[%clk 0:00:09.1]} 33. Nxb4 {[%clk 0:00:16.5]}
33... Qb5 {[%clk 0:00:10.3]} 34. Qe5 {[%clk 0:00:16.1]} 34... Qf1+ {[%clk
0:00:08.1]} 35. Kc2 {[%clk 0:00:17.1]} 35... Kb7 {[%clk 0:00:03.3]} 36. Qc5
{[%clk 0:00:17.3]} 36... Qb5 {[%clk 0:00:03.6]} 37. Qxb5+ {[%clk 0:00:16.9]}
37... axb5 {[%clk 0:00:05.5]} 38. Rxf7 {[%clk 0:00:18.2]} 38... Re8 {[%clk
0:00:06.8]} 39. Kd2 {[%clk 0:00:19.1]} 39... Re2+ {[%clk 0:00:08.7]} 40. Kxe2
{[%clk 0:00:19.8]} 1-0

[Event "*** MasterClass Titled Tuesday Blitz"]
[Site "Chess.com"]
[Date "2017.12.12"]
[Round "4"]
[White "OparinGrigoriy"]
[Black "chessking2151"]
[Result "1-0"]
[WhiteElo "2673"]
[BlackElo "2360"]
[TimeControl "180+2"]
[EndTime "13:53:46 PST"]
[Termination "OparinGrigoriy won by resignation"]

1. e4 {[%clk 0:03:01.9]} 1... e5 {[%clk 0:02:59.8]} 2. Nc3 {[%clk 0:03:03.4]}
2... Nc6 {[%clk 0:03:00]} 3. Bc4 {[%clk 0:03:04.7]} 3... Nf6 {[%clk 0:03:00.9]}
4. d3 {[%clk 0:03:06.2]} 4... Be7 {[%clk 0:03:01.3]} 5. Nge2 {[%clk 0:03:07.8]}
5... O-O {[%clk 0:03:02.4]} 6. O-O {[%clk 0:03:08.9]} 6... d6 {[%clk 0:03:03.6]}
7. f4 {[%clk 0:03:08.3]} 7... exf4 {[%clk 0:02:59.7]} 8. Bxf4 {[%clk 0:03:09]}
8... Na5 {[%clk 0:02:59.4]} 9. Bb3 {[%clk 0:03:08.8]} 9... Nxb3 {[%clk
0:03:00.6]} 10. axb3 {[%clk 0:03:10.7]} 10... a6 {[%clk 0:02:59.8]} 11. Kh1
{[%clk 0:03:08.4]} 11... Re8 {[%clk 0:03:00.4]} 12. Ng3 {[%clk 0:03:09.5]} 12...
Bg4 {[%clk 0:02:56.7]} 13. Qd2 {[%clk 0:03:10.2]} 13... Qd7 {[%clk 0:02:54.2]}
14. Rf2 {[%clk 0:03:09.8]} 14... Nh5 {[%clk 0:02:25.5]} 15. Nxh5 {[%clk
0:03:09.4]} 15... Bxh5 {[%clk 0:02:27.4]} 16. Raf1 {[%clk 0:03:10.6]} 16... f6
{[%clk 0:02:27.1]} 17. Nd5 {[%clk 0:03:08.8]} 17... Bf7 {[%clk 0:02:26.4]} 18.
Ne3 {[%clk 0:03:10.3]} 18... Be6 {[%clk 0:02:27.1]} 19. Rf3 {[%clk 0:03:10.6]}
19... c6 {[%clk 0:02:24.4]} 20. Rg3 {[%clk 0:03:09.8]} 20... Kh8 {[%clk
0:02:23.3]} 21. Nc4 {[%clk 0:02:56.9]} 21... Rad8 {[%clk 0:02:07.2]} 22. d4
{[%clk 0:02:48.4]} 22... Bf8 {[%clk 0:01:54.7]} 23. d5 {[%clk 0:02:47.7]} 23...
Bf7 {[%clk 0:01:49.8]} 24. Rd3 {[%clk 0:02:18.9]} 24... c5 {[%clk 0:01:44.9]}
25. Re3 {[%clk 0:02:02.7]} 25... Bg6 {[%clk 0:01:42.9]} 26. Rfe1 {[%clk
0:02:03.8]} 26... Qc7 {[%clk 0:01:11.1]} 27. h3 {[%clk 0:01:52.5]} 27... Ra8
{[%clk 0:01:03.2]} 28. Qc3 {[%clk 0:01:30.9]} 28... b5 {[%clk 0:00:58.1]} 29.
Nd2 {[%clk 0:01:32.4]} 29... Re7 {[%clk 0:00:42.6]} 30. Nf3 {[%clk 0:01:29.1]}
30... Rae8 {[%clk 0:00:40.2]} 31. Qd3 {[%clk 0:01:29.6]} 31... Qd7 {[%clk
0:00:28.9]} 32. Nh4 {[%clk 0:01:28.8]} 32... Kg8 {[%clk 0:00:24.3]} 33. Nxg6
{[%clk 0:01:26.8]} 33... hxg6 {[%clk 0:00:25.4]} 34. Bg3 {[%clk 0:01:26.5]}
34... g5 {[%clk 0:00:22.8]} 35. c4 {[%clk 0:01:22.5]} 35... Rb8 {[%clk
0:00:20.6]} 36. Qe2 {[%clk 0:01:20.7]} 36... Ree8 {[%clk 0:00:21.3]} 37. Qf2
{[%clk 0:01:20.5]} 37... bxc4 {[%clk 0:00:21.5]} 38. bxc4 {[%clk 0:01:22.4]}
38... Rb4 {[%clk 0:00:22.4]} 39. b3 {[%clk 0:01:18.2]} 39... Qb7 {[%clk
0:00:22.4]} 40. Qf3 {[%clk 0:01:10.1]} 40... a5 {[%clk 0:00:21]} 41. h4 {[%clk
0:01:04.7]} 41... gxh4 {[%clk 0:00:21.2]} 42. Bxh4 {[%clk 0:01:06.6]} 42... a4
{[%clk 0:00:21.9]} 43. bxa4 {[%clk 0:01:08.1]} 43... Rxa4 {[%clk 0:00:18.3]} 44.
Qg4 {[%clk 0:01:08.9]} 44... Qf7 {[%clk 0:00:16.2]} 45. e5 {[%clk 0:01:03.3]}
45... dxe5 {[%clk 0:00:13.3]} 46. Rf3 {[%clk 0:00:58.9]} 46... Ra6 {[%clk
0:00:04.4]} 47. Ref1 {[%clk 0:00:59.6]} 47... Be7 {[%clk 0:00:03.7]} 48. Rh3
{[%clk 0:00:48.3]} 48... Rf8 {[%clk 0:00:03.6]} 49. Qf5 {[%clk 0:00:43.6]} 49...
g6 {[%clk 0:00:04.5]} 50. Qe4 {[%clk 0:00:44.1]} 50... f5 {[%clk 0:00:05]} 51.
Qxe5 {[%clk 0:00:45.4]} 51... Bxh4 {[%clk 0:00:06.1]} 52. Rxh4 {[%clk
0:00:47.3]} 52... Qg7 {[%clk 0:00:07.8]} 53. Re1 {[%clk 0:00:43.3]} 53... Qxe5
{[%clk 0:00:08.5]} 54. Rxe5 {[%clk 0:00:45.2]} 54... Ra1+ {[%clk 0:00:09.5]} 55.
Kh2 {[%clk 0:00:46.3]} 55... Ra6 {[%clk 0:00:11.2]} 56. Re7 {[%clk 0:00:44.4]}
56... Rf7 {[%clk 0:00:12.5]} 57. Re8+ {[%clk 0:00:45.9]} 57... Kg7 {[%clk
0:00:13.8]} 58. Rc8 {[%clk 0:00:45.7]} 58... Ra5 {[%clk 0:00:15.3]} 59. Rc6
{[%clk 0:00:45.2]} 59... Re7 {[%clk 0:00:08.1]} 60. Rh3 {[%clk 0:00:45.9]} 60...
f4 {[%clk 0:00:05.6]} 61. d6 {[%clk 0:00:45.5]} 61... Rd7 {[%clk 0:00:06.7]} 62.
Rd3 {[%clk 0:00:42.7]} 62... Kf6 {[%clk 0:00:07.6]} 63. Kh3 {[%clk 0:00:41.9]}
63... Ra4 {[%clk 0:00:06.8]} 64. Rxc5 {[%clk 0:00:42.6]} 64... Ke6 {[%clk
0:00:07.2]} 65. Rc6 {[%clk 0:00:41.2]} 65... g5 {[%clk 0:00:08.3]} 66. Kg4
{[%clk 0:00:38.2]} 66... Ra5 {[%clk 0:00:09.8]} 67. c5 {[%clk 0:00:38.7]} 67...
Rb5 {[%clk 0:00:09.8]} 68. Kxg5 {[%clk 0:00:37.6]} 1-0